Cogmind - Beta 12 @@@ ROGUE MODE // 2023.07.17 @ 12:29:52 Player: woons Result: Destroyed by G-34 Mercenary with Small Laser Performance ------------- Evolutions (1) 500 Regions Visited (2) 400 Robots Destroyed (37) 185 Value Destroyed (544) 544 Prototype IDs (0) 0 Alien Tech Used (0) 0 Bonus (0) 0 TOTAL SCORE: 1629 Bonus ------- None Cogmind --------- Core Integrity 0/400 Matter 194/300 Energy 100/100 System Corruption 0% Temperature Cool (12) Movement Core (100) Ox1 Location -9/Materials Parts ------- > --- POWER (1) -------- (None) > --- PROPULSION (2) --- (None) > --- UTILITY (4) ------ Disposable Heat Sink Small Storage Unit > --- WEAPON (2) ------- (None) > --- INVENTORY (8) ---- Aluminum Leg Aluminum Leg Small Storage Unit Hardened Light Armor Plating Hardened Light Armor Plating Peak State ------------ > --- POWER ------------ Improved Ion Engine > --- PROPULSION ------- Wheel Armored Wheel > --- UTILITY ---------- Disposable Heat Sink Small Storage Unit Hardened Light Armor Plating Hardened Light Armor Plating > --- WEAPON ----------- EM Pulse Gun Medium Laser > --- INVENTORY -------- Light Treads Aluminum Leg Aluminum Leg Small Storage Unit Hardened Light Armor Plating Hardened Light Armor Plating Medium Laser Mining Laser [Rating: 15] Favorites ----------- Power Improved Ion Engine Engine Improved Ion Engine Propulsion Wheel Treads Light Treads Leg Aluminum Leg Wheel Wheel Utility Hardened Light Armor Plating Device Disposable Heat Sink Storage Small Storage Unit Protection Hardened Light Armor Plating Weapon Medium Laser Energy Gun Medium Laser Ballistic Cannon Improved Light Cannon Launcher Rocket Launcher Special Weapon Mining Laser Build | -11 -10 -9 ------- Run | Jun Mat Mat Slots Evolved 2 | . . 2 Power . | . . . Propulsion . | . . . Utility 2 | . . 2 Weapon . | . . . Parts Attached 33 | 1 19 13 Power 3 | . 2 1 Engine 3 | . 2 1 Core . | . . . Reactor . | . . . Propulsion 9 | . 4 5 Treads 3 | . 3 . Leg 2 | . . 2 Wheel 4 | . 1 3 Hover . | . . . Flight . | . . . Utility 6 | 1 2 3 Device 1 | . . 1 Storage 1 | 1 . . Processor . | . . . Hackware . | . . . Protection 4 | . 2 2 Artifact . | . . . Weapon 15 | . 11 4 Energy Gun 8 | . 6 2 Energy Cannon . | . . . Ballistic Gun . | . . . Ballistic Cannon 1 | . . 1 Launcher 4 | . 4 . Special Weapon 2 | . 1 1 Impact Weapon . | . . . Slashing Weapon . | . . . Piercing Weapon . | . . . Special Melee Weapon . | . . . Unidentified Prototypes . | . . . Parts Lost 10 | . 1 9 Power 1 | . . 1 Propulsion 3 | . 1 2 Utility 2 | . . 2 Weapon 4 | . . 4 Highest Loss Streak 6 | . 1 6 To Critical Strikes . | . . . Average Slot Usage (%) 96 | . 99 95 Engine 11 | . 14 10 Treads 5 | . 13 . Leg 6 | . 13 1 Wheel 12 | . . 19 Device 4 | . . 7 Storage 14 | . 20 11 Protection 17 | . 7 23 Energy Gun 20 | . 26 16 Ballistic Cannon 2 | . . 4 Naked Turns . | . . . Heaviest Build 31 | 17 21 31 Greatest Support 40 | 20 40 22 Greatest Overweight (x) 2 | . 2 2 Average Overweight (x) . | . . 1 Largest Inventory Capacity 8 | 8 8 8 Average Capacity 8 | 8 8 8 Most Carried 8 | 6 8 8 Average Carried 6 | 4 6 6 Final Capacity 8 | 8 8 8 Final Carried 5 | 4 5 5 Class Distribution -------------------- 100% | Mutant Dominant Class ---------------- Mutant | -10/Materials Mutant | -9/Materials Resources | -11 -10 -9 ----------- Run | Jun Mat Mat Matter Collected 509 | 210 51 248 Remotely . | . . . Salvage Created 802 | 98 310 394 Parts 59 | 1 24 34 Haulers Intercepted 2 | . . 2 Recyclers Shooed 3 | . 2 1 Parts Field Recycled . | . . . Retrieved Matter . | . . . Parts Self-Destructed . | . . . Prevented . | . . . Kills | -11 -10 -9 ------- Run | Jun Mat Mat Combat Hostiles Destroyed 19 | . 9 10 Guns 10 | . 4 6 Cannons 3 | . . 3 AOE 6 | . 5 1 Classes Destroyed 10 | 2 5 3 Worker 7 | . 6 1 Builder 1 | . 1 . Tunneler 1 | 1 . . Hauler 2 | . . 2 Recycler 2 | 1 1 . Operator 2 | . . 2 Watcher 3 | . 1 2 Swarmer 12 | . 6 6 Grunt 6 | . 3 3 Sentry 1 | . . 1 Best Kill Streak 10 | 2 10 5 Combat Bots Only 5 | . 5 4 Max Kills in Single Turn 4 | 1 4 2 Gunslinging . | . . . Exploded 2 | . 2 1 Melee . | . . . Uniques/NPCs Destroyed . | . . . Combat | -11 -10 -9 -------- Run | Jun Mat Mat Damage Taken 2055 | . 597 1458 Core 540 | . 131 409 Absorbed by Shields . | . . . Regen/Repaired (Parts) 68 | . . 68 Core Remaining (%) 73 | 100 47 . Volleys Fired 88 | 6 37 45 Largest 2 | 2 2 2 Hottest 150 | 100 100 150 Shots Fired 156 | 12 62 82 Gun 126 | 12 53 61 Cannon 18 | . . 18 Launcher 6 | . 6 . Special 6 | . 3 3 Kinetic 18 | . . 18 Thermal 116 | 12 56 48 Explosive 6 | . 6 . Electromagnetic 16 | . . 16 Robot Hit Streak 8 | 5 6 8 Robot Miss Streak 4 | 3 4 3 Penetration Max . | . . . Secondary Targets 1 | . . 1 Max Gunslinging Chain 1 | . . 1 Shots Hit Robots 83 | 6 32 45 Core Hits 53 | 3 24 26 Critical Kills . | . . . Critical Parts Destroyed . | . . . Critical Strikes 13 | 2 6 5 Burn 11 | 2 6 3 Blast 1 | . . 1 Corrupt 1 | . . 1 Melee Attacks . | . . . Impact . | . . . Slashing . | . . . Piercing . | . . . Sneak Attacks . | . . . Combat Hostiles . | . . . Follow-up Attacks . | . . . Damage Inflicted 2051 | 75 991 985 Guns 970 | 75 422 473 Cannons 195 | . . 195 Explosions 862 | . 569 293 Melee . | . . . Ramming . | . . . Kinetic 195 | . . 195 Thermal 947 | 75 422 450 Explosive 735 | . 569 166 Electromagnetic 174 | . . 174 Impact . | . . . Slashing . | . . . Piercing . | . . . Highest Corruption . | . . . Average Corruption . | . . . Corruption Purged . | . . . Corruption Blocked . | . . . Overload Shots . | . . . Overflow Damage 39 | . 11 28 Projectiles . | . . . Explosions 39 | . 11 28 Melee . | . . . Knockbacks 4 | . . 4 Impact . | . . . Kinetic 3 | . . 3 Secondary 1 | . . 1 Self-Inflicted Damage 227 | . 69 158 Shots 5 | . 2 3 Rammed . | . . . Targets Rammed 1 | . 1 . Kicked 1 | . 1 . Crushed . | . . . Highest Temperature 591 | 122 591 387 Average Temperature 159 | 62 215 125 Received Heat Transfer 423 | . 120 303 Effects 17 | . 16 1 Shutdowns 6 | . 5 1 Energy Bleed 1 | . 1 . Interference 2 | . 2 . Short Circuit 2 | . 2 . Damage (minor) 1 | . 1 . Damage (major) 3 | . 3 . Damage (core) 2 | . 2 . Siege Activations . | . . . Robots Corrupted . | . . . Combat Hostiles . | . . . Parts Fried . | . . . Impact Corruptions . | . . . Robots Melted . | . . . Combat Hostiles . | . . . Parts Melted 1 | 1 . . Heat Transferred 3382 | 370 1702 1310 Parts Sabotaged . | . . . Parts Stolen . | . . . Parts Stripped . | . . . Power Chain Reactions 2 | . . 2 Missiles Intercepted . | . . . Alert | -11 -10 -9 ------- Run | Jun Mat Mat Peak Influence 382 | 10 382 298 Initial 72 | . 6 72 Average 130 | 6 128 141 Maximum Alert Level 1 | . 1 1 Low Security (%) 71 | 100 61 75 Level 1 28 | . 38 24 Level 2 . | . . . Level 3 . | . . . Level 4 . | . . . Level 5 . | . . . High Security . | . . . Max Security . | . . . Squads Dispatched 4 | . 1 3 Investigation 3 | . 1 2 Extermination . | . . . Reinforcement 1 | . . 1 Assault . | . . . Garrison . | . . . Intercept . | . . . Searches Triggered . | . . . Construction Impeded . | . . . Haulers Reinforced . | . . . Active Scanning Responses . | . . . Cargo Convoy Interrupts . | . . . Stealth | -11 -10 -9 --------- Run | Jun Mat Mat Distress Signals 4 | . 1 3 Communications Jammed . | . . . Distress Signals . | . . . Times Spotted 39 | . 12 27 Peak Tracking Total 9 | . 5 9 Tactical Retreats . | . . . Traps | -11 -10 -9 ------- Run | Jun Mat Mat Traps Triggered 2 | . 1 1 Indirectly . | . . . Trap Hack Attempts . | . . . Triggered . | . . . Disarmed . | . . . Reprogrammed . | . . . Reused . | . . . Traps Extracted . | . . . Installed . | . . . Triggered . | . . . Machines | -11 -10 -9 ---------- Run | Jun Mat Mat Machines Disabled 6 | . 3 3 Max in Single Turn 2 | . 1 2 Machines Repaired . | . . . Machines Sabotaged . | . . . Overloaded Fab Kills . | . . . Hacking | -11 -10 -9 --------- Run | Jun Mat Mat Machines Accessed 5 | . 2 3 Terminals 3 | . 1 2 Fabricators . | . . . Repair Stations 1 | . . 1 Recycling Units 1 | . 1 . Scanalyzers . | . . . Garrison Access . | . . . Total Hacks 20 | . 5 15 Successful 10 | . 3 7 Failed 10 | . 2 8 Catastrophic . | . . . Database Lockouts . | . . . Manual 12 | . 3 9 Terminals 15 | . 4 11 Fabricators . | . . . Repair Stations 4 | . . 4 Recycling Units 1 | . 1 . Scanalyzers . | . . . Garrison Access . | . . . Terminal Hacks 3 | . 1 2 Alert Level 1 | . . 1 Zone Layout 2 | . 1 1 Fabricator Hacks . | . . . Repair Station Hacks 4 | . . 4 Scan Component 2 | . . 2 Repair 2 | . . 2 Recycling Unit Hacks . | . . . Scanalyzer . | . . . Garrison Access Hacks . | . . . Unauthorized Hacks 3 | . 2 1 Terminals 2 | . 1 1 Botnet 2 | . 1 1 Fabricators . | . . . Repair Stations . | . . . Recycling Units 1 | . 1 . Mask 1 | . 1 . Scanalyzers . | . . . Garrison Access . | . . . Data Cores Recovered . | . . . Used . | . . . Hacking Detections 3 | . 1 2 Full Trace Events 1 | . . 1 Feedback Events . | . . . Feedback Blocked . | . . . Robot Schematics Acquired . | . . . Robots Built . | . . . Authchips . | . . . Time . | . . . Total Robot Build Rating . | . . . Part Schematics Acquired . | . . . Parts Built . | . . . Authchips . | . . . Time . | . . . Total Part Build Rating . | . . . Parts Repaired 2 | . . 2 Time 68 | . . 68 Parts Recycled . | . . . Recycled Matter . | . . . Retrieved Matter . | . . . Retrieved Components . | . . . Parts Scanalyzed . | . . . Part Schematics Acquired . | . . . Parts Damaged . | . . . Bothacking | -11 -10 -9 ------------ Run | Jun Mat Mat Used RIF Installer . | . . . Robots Hacked . | . . . Non-combat . | . . . Combat . | . . . Robot Hacks Applied . | . . . Relay Couplers Released . | . . . Fabnet Peak Effective % . | . . . Robots Rewired . | . . . Allies Hacked . | . . . Hacks Repelled . | . . . Allies | -11 -10 -9 -------- Run | Jun Mat Mat Total Allies . | . . . Largest Group . | . . . Highest-Rated Group . | . . . Highest-Rated Ally . | . . . Total Orders . | . . . Ally Attacks . | . . . Total Damage . | . . . Kills . | . . . Allies Corrupted . | . . . Allies Melted . | . . . Intel | -11 -10 -9 ------- Run | Jun Mat Mat Robot Analysis Total . | . . . Derelict Logs Recovered . | . . . Drone Launches . | . . . Drone Recoveries . | . . . Exploration | -11 -10 -9 ------------- Run | Jun Mat Mat Turns Passed 1118 | 49 401 668 Spaces Moved 481 | 23 189 269 Core . | . . . Treads 48 | . 48 . Legs 177 | 23 132 22 Wheels 256 | . 9 247 Hover . | . . . Flight . | . . . Fastest Speed 95 | 120 110 95 Average Speed 117 | 120 132 105 Slowest Speed 260 | 120 240 260 Overloaded Moves . | . . . Propulsion Burnouts . | . . . Robots Hopped . | . . . Cave-ins Triggered . | . . . Exploration Rate (%) 26 | 3 41 35 Regions Visited 2 Branch Regions . Pre-discovered Areas . | . . . Known Exits Taken . | . . . Unknown Exits Taken 2 | 1 1 . Scrap Searched . | . . . Spaces Dug 3 | . 3 . Terrain Destroyed 84 | . 40 44 Melee . | . . . Projectile 4 | . 3 1 AOE 80 | . 37 43 Terrain Rammed . | . . . Walls Destroyed . | . . . Machines Disabled . | . . . Actions | -11 -10 -9 --------- Run | Jun Mat Mat Total 866 | 32 269 565 Wait 231 | . 4 227 Move 480 | 23 188 269 Hop . | . . . Pick Up 12 | . 9 3 Fast Attach 8 | 1 1 6 Attach 7 | . 2 5 Detach 6 | . 1 5 Swap 18 | . 16 2 Drop 15 | 2 10 3 Fire 88 | 6 37 45 Melee . | . . . Ram . | . . . Kick 1 | . 1 . Crush . | . . . Escape Stasis . | . . . Rewire . | . . . Trap . | . . . Miscellaneous . | . . . Route ------- -11/Junkyard -10/Materials -9/Materials History --------- Turn | Location | Event 1 | -11/Junkyard | Discovered new exit (range 3) 50 | -11/Junkyard | Entered Materials 342 | -10/Materials | Build established: Mutant 412 | -10/Materials | Core integrity fell below 50% 427 | -10/Materials | Discovered new exit (range 15) 451 | -10/Materials | Entered another Materials area 451 | -9/Materials | Evolved 2 slots: Utility x2 598 | -9/Materials | Repaired Broken Med. Laser 655 | -9/Materials | Repaired Imp. Ion Engine 871 | -9/Materials | Lost 3 parts (3w) 1113 | -9/Materials | Core integrity fell below 50% 1116 | -9/Materials | Core integrity fell below 20% 1119 | -9/Materials | Destroyed by G-34 Mercenary with Small Laser Last Messages --------------- 01081_ O-16 Technician: "IFF HANDSHAKE FAILED. SECURING TERMINAL." 01082_ S-10 Pest destroyed. 01086_ O-16 Technician destroyed. 01089_ Purification Channel disabled. 01090_ K-01 Serf collects debris. 01091_ Hrd. Light Armor Plating destroyed. 01091_ K-01 Serf collects debris. 01100_ C-30 ARC bursts open, deploying its payload. 01100_ L-31 Rogue unfolds itself. 01101_ Imp. Ion Engine destroyed. 01103_ L-31 Rogue knocked back. 01103_ W-16 Scout destroyed. 01106_ K-01 Serf collects debris. 01107_ Hrd. Light Armor Plating destroyed. 01110_ Arm. Wheel destroyed. 01110_ S-10 Pest destroyed. 01112_ Med. Laser severed. 01112_ Imp. Light Cannon destroyed. 01115_ K-01 Serf collects debris. 01115_ S-10 Pest destroyed. Map ----- +----------------------------------------------------+ | ????????????????????????# #??## | | ??????????????????????????# #???? | | ??????????????????????????# #???? | | ??????????????????????????##### #### #???? | | ??????????????????????????????# #??#######???? | | ??????????????????????????????# #??########??? | | ??????????????????????????????# #? [#??? | | ?????????????????????########## #? #??? | | ???????????????????? # [ #??? | | ???????????????????? # #??? | | ?????????????????????## + """ ""??#### | | ??????????????????????# % # """ ""??# | | ??????????????????????# " # """ ""??# | | ??????????????????????# """%= #? ??# "" | | ??????????????????????# "" = #?######??# "" | | ??????????????????????# """ ! #?????????# "" | | ??????????????????????#! "" ##????????# | | ????????????????????### """ "#????????# = | | ????????????????????# """ T#????????# = | | ????????????????????# """ % "#????????#### | | ????????????????????+ "T" ##???????????? | | ????????????????????# g $= #????????????? | | ????????????????????# gs* % #????????????? | | ????????????????????# [%%#"T"#######????????????? | | ????????????????????# =k=#####??????????????????? | | ????????????????????# @#??????????????????????? | | ????????????????????# =lg#??????????????????????? | | ????????????????????# *gk%??????????????????????? | | ????????????????????#######??????????????????????? | | ?????????????????????????????????????????????????? | | ?????????????????????????????????????????????????? | | ?????????????????????????????????????????????????? | | ?????????????????????????????????????????????????? | | ?????????????????????????????????????????????????? | | ?????????????????????????????????????????????????? | | ?????????????????????????????????????????????????? | | ?????????????????????????????????????????????????? | | ?????????????????????????????????????????????????? | | ?????????????????????????????????????????????????? | | ?????????????????????????????????????????????????? | | ?????????????????????????????????????????????????? | | ?????????????????????????????????????????????????? | | ?????????????????????????????????????????????????? | | ?????????????????????????????????????????????????? | | ?????????????????????????????????????????????????? | | | | | | | | | | | +----------------------------------------------------+ Best States ------------- Heat Dissipation 28 Coolant Potential 50 Energy Generation 12 Energy Capacity 265 Matter Stores 300 Matter Capacity 300 Sight Range 16 Terrain Scan Density 10 Armor Coverage 450 Evasion (%) 55 Recoil Reduction 2 Item Schematics ----------------- None Robot Schematics ------------------ None Fabricated ------------ Nothing Alien Tech Used ----------------- None Achievements -------------- None Challenges ------------ None Game ------ Seed ProtonAlphaArchive Manual? 0 Play Time 00:14:51 Cumulative 26.6 hours Start 2023.07.17 @ 12:17:38 End 2023.07.17 @ 12:29:52 Sessions 1 Manual Loads 0 Difficulty Rogue Special Mode None Game No. 28 Rogue 27 Adventurer 1 Explorer 0 Win Type - Total 0 Types 0/0/0/0/0/0/0/0/0 Lore% 24 Gallery% 37 Achievement% 27 Wizard Run 0 Options --------- ASCII 0 Keyboard 0 Movement Mouse Keybinds 0 Fullscreen 2 Font 24/Proggy Map View 76x50 Tactical HUD 1 Map Filters NONE Filters NONE Steam 1 RUN: be887e25-9947-4f47-9c4f-154386a34e15